bitfinex/quotes_ETHUSD_20260305
["timestamp","ask_amount","ask_price","bid_price","bid_amount"]
[1772699476086,7.52149747,2098.2,2097.3,1.22167683]
[1772699476289,1.19149747,2098.2,2097.4,2.41362877]
[1772699476473,2.435199,2098.2,2097.4,2.41362877]
[1772699477871,0.001,2098.3,2097.5,1.22167683]
[1772699478488,0.001,2098.3,2097.6,1.19183829]
[1772699478692,0.001,2098.3,2097.7,1.22167683]
[1772699478890,0.001,2098.3,2097.8,2.45042929]
[1772699479074,0.001,2098.3,2097.9,1.231]
[1772699479479,0.001,2098.3,2098.0,1.231]
[1772699480605,0.001,2098.3,2097.9,1.21942929]
[1772699480823,0.001,2098.3,2097.8,2.45042929]
[1772699481114,0.001,2098.3,2097.9,1.21942929]
[1772699481593,0.001,2098.5,2097.9,1.21942929]
[1772699483095,0.001,2098.5,2098.1,1.21942929]
[1772699483607,1.1479569,2099.0,2098.1,1.21942929]
[1772699484173,4.76383897,2099.2,2098.1,1.21942929]
[1772699484174,1.1909572,2099.2,2098.2,1.21942929]
[1772699484408,1.1479569,2099.1,2098.3,1.231]
[1772699484700,1.1479569,2099.1,2098.3,2.45042929]
[1772699484897,1.1479569,2099.2,2098.4,1.21942929]
[1772699485104,1.1479569,2099.0,2098.5,1.19132713]
[1772699485267,1.1479569,2099.0,2098.2,2.42246542]
[1772699485472,1.1479569,2099.0,2098.2,1.19146542]
[1772699485869,1.1479569,2099.0,2098.1,1.19151298]
[1772699487113,1.20150657,2098.8,2097.9,1.19166785]
[1772699489221,2.39272017,2098.7,2097.9,2.32096943]
[1772699489635,2.39272017,2098.7,2097.8,1.19167986]
[1772699489636,1.20150657,2098.6,2097.8,1.19167986]
[1772699491122,1.19132713,2098.5,2097.5,0.0011]
[1772699491325,1.20150657,2098.4,2097.5,4.76867167]
[1772699493297,1.20150657,2098.2,2097.5,0.0011]
[1772699495629,0.001,2098.1,2097.5,1.13040158]
[1772699496032,1.20150657,2098.7,2097.6,1.12930158]
[1772699496235,2.39273462,2098.7,2097.6,1.12930158]
[1772699496406,1.20150657,2098.7,2097.6,1.12930158]
[1772699497005,1.20150657,2098.6,2097.6,1.12930158]
[1772699497199,1.20150657,2098.6,2097.8,1.12930158]
[1772699497509,1.20150657,2098.8,2097.8,1.12930158]
[1772699497711,1.19106991,2099.0,2098.0,1.12930158]
[1772699498122,2.39257648,2099.0,2098.0,1.12930158]
[1772699498314,1.20150657,2098.9,2098.0,1.12930158]
[1772699499232,1.20150657,2098.9,2098.2,1.12930158]
[1772699499436,2.39244403,2099.2,2098.3,1.12930158]
[1772699499813,1.20150657,2099.2,2098.3,1.12930158]
[1772699501438,1.20250657,2099.3,2098.5,1.12930158]
[1772699502437,1.20250657,2099.3,2098.6,1.12930158]
[1772699502621,0.001,2099.3,2098.6,1.12930158]
[1772699503223,2.39210095,2099.8,2098.6,1.12930158]
[1772699503443,2.39210095,2099.8,2098.8,1.12930158]
[1772699503739,1.20150657,2099.7,2098.8,1.12930158]
[1772699504736,1.20150657,2099.7,2098.9,1.23]
[1772699505534,2.39219316,2099.7,2099.0,1.19104335]
[1772699506217,1.20150657,2099.6,2099.0,1.19104335]
[1772699506939,1.19061052,2099.8,2099.0,2.32034493]
[1772699507143,2.39211709,2099.8,2099.0,2.32034493]
[1772699507520,0.001,2099.5,2099.1,1.12930158]
[1772699508720,0.33612026,2099.9,2099.1,1.09869118]
[1772699509535,0.33612026,2099.9,2099.3,1.09869118]
[1772699509743,0.33612026,2099.9,2099.5,1.09869118]
[1772699509936,0.001,2100.0,2099.5,1.09869118]
[1772699510927,0.001,2100.0,2099.6,2.32769118]
[1772699511254,0.001,2100.0,2099.6,1.229]
[1772699511560,0.001,2100.0,2099.7,1.19064628]
[1772699512175,0.001,2100.0,2099.7,2.28933746]
[1772699512364,0.001,2100.7,2099.8,1.09869118]
[1772699512564,1.19044945,2100.7,2099.8,1.09869118]
[1772699513429,1.19013615,2100.6,2099.9,1.19053288]
[1772699513649,2.3795856,2100.6,2099.9,2.28922406]
[1772699514045,1.18944945,2100.6,2099.9,3.51822406]
[1772699514364,1.19112345,2100.7,2100.0,1.09869118]
[1772699514365,0.001,2100.7,2100.0,1.09869118]
[1772699514950,1.19108571,2100.7,2100.1,1.229]
[1772699515146,0.001,2100.7,2100.1,1.229]
[1772699515673,0.001,2100.7,2100.2,1.19036282]
[1772699516037,4.76044009,2101.1,2100.3,1.09869118]
[1772699516038,1.19087101,2101.1,2100.3,1.09869118]
[1772699516234,0.001,2101.1,2100.3,1.09869118]
[1772699517936,0.001,2101.1,2100.5,1.09869118]
[1772699518651,1.19044945,2101.1,2100.5,1.229]
[1772699518962,0.001,2101.1,2100.5,2.32769118]
[1772699519414,0.001,2101.1,2100.6,1.09869118]
[1772699519683,2.38008119,2101.5,2100.7,1.229]
[1772699520045,1.19044945,2101.5,2100.8,1.19002284]
[1772699520238,0.001,2101.5,2100.9,1.09869118]
[1772699520551,0.33035799,2101.7,2100.9,1.09869118]
[1772699520552,0.001,2101.7,2100.9,1.09869118]
[1772699520745,1.19044945,2101.7,2100.9,1.09869118]
[1772699520976,1.18944945,2101.6,2101.0,1.229]
[1772699521392,1.18944945,2101.6,2100.7,2.41903804]
[1772699521603,1.18944945,2101.6,2100.7,1.19003804]
[1772699521765,1.18944945,2101.6,2100.7,2.28872922]
[1772699522093,1.18944945,2101.6,2100.8,1.09869118]
[1772699522391,2.37902367,2101.6,2100.9,1.1899662]
[1772699523393,1.18944945,2101.5,2100.9,1.229]
[1772699524163,2.37998397,2101.7,2101.0,1.18990956]
[1772699525595,2.37996542,2101.7,2101.0,1.18990956]
[1772699526080,1.19044945,2101.7,2101.0,1.18990956]
[1772699526285,0.001,2101.7,2101.1,1.09869118]
[1772699526482,1.18944945,2102.3,2101.1,1.09869118]
[1772699526798,1.18944945,2102.2,2101.1,1.09869118]
[1772699526996,1.18944945,2102.2,2101.2,1.229]
[1772699527196,1.18944945,2102.2,2101.2,2.32769118]
[1772699527491,1.18944945,2102.2,2101.2,1.229]
[1772699527894,1.18944945,2102.2,2101.1,1.23]
[1772699528894,1.18944945,2102.0,2101.0,1.18990956]
[1772699529209,1.18944945,2102.1,2101.1,1.09869118]
[1772699529781,1.18919823,2102.3,2101.1,1.09869118]
[1772699529982,1.18944945,2102.2,2101.1,1.09869118]
[1772699530188,1.18944945,2102.1,2101.0,1.18990956]
[1772699530401,1.18944945,2102.1,2100.9,2.41992345]
[1772699530707,1.18944945,2102.1,2100.9,1.18992345]
[1772699530912,1.18944945,2101.9,2100.9,2.41892345]
[1772699531304,1.18934348,2102.0,2101.2,0.0011]
[1772699531504,1.18934348,2102.0,2101.2,1.09979118]
[1772699531690,0.001,2102.0,2101.2,1.09979118]
[1772699532317,0.001,2102.0,2101.3,1.229]
[1772699533011,0.001,2102.0,2101.4,1.18968306]
[1772699533187,0.001,2102.0,2101.5,1.229]
[1772699533914,0.001,2102.0,2101.4,1.18968306]
[1772699534114,0.001,2102.0,2101.5,1.229]
[1772699534296,0.001,2102.0,2101.4,2.41868306]
[1772699534497,0.001,2102.0,2101.3,1.18973419]
[1772699534498,1.19044945,2102.0,2101.3,1.18973419]
[1772699535211,0.001,2102.0,2101.5,2.28831763]
[1772699535514,2.378463,2102.6,2101.6,1.09869118]
[1772699536013,1.18944945,2102.5,2101.5,2.41862645]
[1772699537004,1.18944945,2102.5,2101.5,1.18962645]
[1772699537203,1.18944945,2102.3,2101.5,2.41862645]
[1772699537396,1.18944945,2102.3,2101.5,1.229]
[1772699537598,1.18944945,2102.3,2101.4,1.18964688]
[1772699537599,1.18944945,2102.3,2101.4,1.229]
[1772699537795,1.18944945,2102.3,2101.4,2.32769118]
[1772699538714,1.18944945,2102.3,2101.3,1.18971649]
[1772699538916,1.18944945,2102.3,2101.3,2.41871649]
[1772699539211,1.18923033,2102.2,2101.3,2.41871649]
[1772699539416,1.09282718,2102.1,2101.3,2.41871649]
[1772699540190,1.09282718,2102.1,2101.4,1.229]
[1772699541796,2.28214153,2102.1,2101.5,1.18962645]
[1772699541994,6.79325083,2103.0,2101.5,2.36020074]
[1772699541995,1.09282718,2102.6,2101.5,2.36020074]
[1772699543387,1.09282718,2102.6,2101.4,1.18965664]
[1772699543617,1.09282718,2102.4,2101.4,2.41965664]
[1772699543819,1.09282718,2102.2,2101.4,2.41965664]
[1772699544537,1.09282718,2102.2,2101.5,0.0011]
[1772699544850,0.001,2101.9,2101.5,0.0011]
[1772699546050,0.001,2101.9,2101.5,1.2311]
[1772699547430,0.001,2101.9,2101.5,2.37344322]
[1772699547737,0.001,2101.9,2101.6,1.14234322]
[1772699547937,1.08942112,2102.5,2101.7,1.18951325]
[1772699548123,1.08942112,2102.5,2101.8,1.231]
[1772699548625,1.08942112,2102.5,2101.8,2.37334322]
[1772699549535,7.41862025,2102.8,2101.8,2.37334322]
[1772699549536,2.66298953,2102.8,2101.8,2.37334322]
[1772699549745,2.27826164,2102.9,2101.9,1.14234322]
[1772699549923,2.27826164,2102.9,2102.0,2.3316867]
[1772699550125,1.08942112,2102.9,2102.1,1.14234322]
[1772699550326,2.27810661,2103.2,2102.1,1.14234322]
[1772699550530,2.27810661,2103.2,2102.2,1.14234322]
[1772699550731,2.27810661,2103.2,2102.4,1.14234322]
[1772699551619,1.08942112,2103.2,2102.4,1.14234322]
[1772699551822,1.18863478,2103.3,2102.4,1.14234322]
[1772699552020,1.18863478,2103.3,2102.5,2.33140386]
[1772699552236,0.92591049,2103.4,2102.6,1.14234322]
[1772699553242,2.11446446,2103.4,2102.6,1.14234322]
[1772699553524,1.08942112,2103.3,2102.7,1.233]
[1772699553927,1.08942112,2103.3,2102.8,1.188891]
[1772699554248,0.92591049,2103.4,2102.9,1.14234322]
[1772699554644,2.11446633,2103.4,2102.9,1.14234322]
[1772699554839,2.11446633,2103.4,2102.7,2.42190977]
[1772699554840,3.20388745,2103.4,2102.7,2.42190977]
[1772699555042,3.20388745,2103.4,2102.7,3.56425299]
[1772699555726,0.92591049,2103.4,2102.8,1.14234322]
[1772699555920,2.11446367,2103.4,2102.9,1.18883446]
[1772699556169,2.11446367,2103.4,2102.8,2.33118895]
[1772699556340,0.92591049,2103.4,2102.8,2.33118895]
[1772699556531,2.11446781,2103.4,2102.8,2.33118895]
[1772699557149,2.11446979,2103.4,2102.8,2.33118895]
[1772699557449,0.001,2103.2,2102.9,2.37634322]
[1772699557654,0.92591049,2103.4,2103.0,1.14234322]
[1772699557956,3.203887,2103.4,2102.8,2.42284573]
[1772699558936,3.203887,2103.4,2102.9,1.14234322]
[1772699558937,0.92591049,2103.4,2102.9,1.14234322]
[1772699559853,2.27769052,2103.9,2102.9,1.14234322]
[1772699560063,2.27769052,2103.9,2103.0,2.33112115]
[1772699560232,1.08942112,2103.8,2103.0,1.14234322]
[1772699560431,1.08942112,2103.8,2102.8,1.235]
[1772699562149,1.08942112,2103.6,2102.9,1.18883446]
[1772699562462,1.08942112,2103.6,2102.8,2.4238532]
[1772699562650,1.08942112,2103.6,2102.8,1.1888532]
[1772699562850,1.08942112,2103.6,2102.8,2.4248532]
[1772699563249,1.18838237,2103.7,2102.9,1.14234322]
[1772699563454,2.27778621,2103.8,2102.9,1.14234322]
[1772699563760,2.27778621,2103.8,2103.0,2.37934322]
[1772699564265,2.27778621,2103.8,2103.1,1.18872141]
[1772699564638,2.27778621,2103.8,2103.1,3.56806463]
[1772699564847,1.08942112,2104.5,2103.2,1.14234322]
[1772699565046,1.08942112,2104.4,2103.2,1.14234322]
[1772699565453,1.08942112,2104.8,2103.2,1.14234322]
[1772699565648,1.08942112,2104.8,2103.4,1.14234322]
[1772699566065,1.18769135,2105.0,2103.4,1.14234322]
[1772699566273,1.08942112,2105.1,2103.8,1.14234322]
[1772699566576,4.74865219,2105.9,2104.2,1.14234322]
[1772699566577,1.08942112,2105.4,2104.2,1.14234322]
[1772699566745,1.08942112,2105.7,2104.4,1.14234322]
[1772699567144,1.08942112,2106.0,2104.4,1.14234322]
[1772699567341,1.08942112,2106.0,2104.6,1.14234322]
[1772699567546,1.08942112,2106.0,2104.8,1.14234322]
[1772699567895,0.00906949,2106.4,2104.8,1.14234322]
[1772699567896,1.08942112,2106.4,2104.8,1.14234322]
[1772699568186,0.00906949,2107.5,2106.1,1.14234322]
[1772699568187,0.59442112,2107.3,2106.1,1.14234322]
[1772699568353,1.08942112,2107.1,2106.1,1.18702012]
[1772699568567,0.00906949,2107.5,2106.2,1.14234322]
[1772699568568,1.08942112,2107.4,2106.2,1.14234322]
[1772699569173,1.19535064,2107.5,2106.2,1.14234322]
[1772699569392,1.19533182,2107.5,2106.2,1.14234322]
[1772699570175,1.19533182,2107.5,2106.2,1.1185852]
[1772699570367,1.19533182,2107.5,2106.4,1.07659062]
[1772699570792,1.11882206,2107.4,2106.5,1.223]
[1772699571494,1.19533182,2107.5,2106.5,1.225]
[1772699571804,1.19533182,2107.5,2106.1,2.41298904]
[1772699571805,1.11882206,2107.4,2106.1,2.41298904]
[1772699571968,1.11882206,2107.1,2106.0,0.24777027]
[1772699572296,1.1863522,2107.3,2106.2,2.26356241]
[1772699572696,5.86423087,2107.4,2106.2,2.26356241]
[1772699572697,2.30515635,2107.4,2106.3,1.07659062]
[1772699572991,1.18633429,2107.4,2106.3,1.07659062]
[1772699573368,1.18633429,2107.4,2106.4,2.30359062]
[1772699573995,1.18633429,2107.4,2106.5,1.229]
[1772699574408,5.86378496,2107.5,2106.6,1.18674641]
[1772699574720,5.86378496,2107.5,2106.5,1.18676015]
[1772699574924,1.11882206,2107.4,2105.9,4.74842316]
[1772699575102,1.11882206,2107.0,2105.9,4.74842316]
[1772699575303,1.11882206,2107.0,2105.9,1.232]
[1772699575501,1.11882206,2107.0,2105.6,1.58585231]
[1772699575502,1.11882206,2107.0,2105.7,1.18725202]
[1772699575826,1.11882206,2106.7,2105.6,0.39858359]
[1772699576430,1.11882206,2106.4,2105.6,0.39858359]
[1772699576730,1.11882206,2106.1,2104.9,2.264286]
[1772699576894,1.11882206,2106.1,2105.0,1.07659062]
[1772699577089,1.11882206,2106.5,2105.0,1.07659062]
[1772699577602,1.11882206,2106.5,2104.9,1.18769538]
[1772699577790,4.94371005,2106.6,2104.9,1.18769538]
[1772699577791,1.11882206,2106.1,2104.9,1.18769538]
[1772699577985,1.11882206,2106.1,2105.0,1.07659062]
[1772699578503,1.18708452,2106.0,2105.1,1.18759203]
[1772699578822,1.18708452,2106.0,2105.1,2.26418265]
[1772699579022,1.18708452,2106.0,2105.2,1.07659062]
[1772699579524,1.18708452,2106.0,2105.0,2.42760493]
[1772699579919,1.18708452,2106.0,2105.1,1.07659062]
[1772699580220,1.18708452,2106.0,2105.1,2.31759062]
[1772699580412,1.18708452,2106.0,2105.2,1.07659062]
[1772699580587,1.18697179,2106.3,2105.3,1.18747921]
[1772699580921,1.18697179,2106.3,2105.3,2.26406983]
[1772699581355,1.18697179,2106.3,2105.4,1.07659062]
[1772699581808,1.18697179,2106.3,2105.5,1.243]
[1772699582003,1.11882206,2106.2,2105.1,4.7503171]
[1772699582208,1.11882206,2106.2,2105.2,1.243]
[1772699582439,1.11882206,2106.2,2105.1,4.7503171]
[1772699582440,0.92960181,2107.4,2105.3,1.07659062]
[1772699582612,0.92960181,2107.4,2105.5,1.07659062]
[1772699582812,0.92960181,2107.2,2105.7,1.07659062]
[1772699584023,1.1873522,2107.3,2105.7,1.07659062]
[1772699584227,2.14064952,2107.3,2105.7,1.07659062]
[1772699584701,2.14064952,2107.3,2105.9,1.07659062]
[1772699585408,2.14064952,2107.3,2106.0,2.32259062]
[1772699585636,0.95241102,2107.2,2106.0,2.32259062]
[1772699585841,1.18736061,2107.3,2106.3,1.07659062]
[1772699586133,0.001,2107.3,2106.3,1.07659062]
[1772699586727,0.001,2107.3,2106.5,1.07659062]
[1772699587615,0.001,2107.3,2106.4,2.43285909]
[1772699587616,1.75931678,2108.6,2106.7,1.07659062]
[1772699587927,1.11631906,2108.2,2106.9,1.07659062]
[1772699588116,1.11631906,2108.2,2106.4,1.18685909]
[1772699588117,1.11631906,2107.9,2106.4,1.18685909]
[1772699588318,1.11631906,2107.9,2106.9,1.247]
[1772699588520,1.11631906,2107.9,2106.8,1.247]
[1772699588751,1.18584574,2108.2,2107.0,2.26311174]
[1772699589050,1.18584574,2108.2,2107.1,1.07659062]
[1772699590174,1.18584574,2108.2,2107.2,2.32359062]
[1772699590375,1.18584574,2108.2,2107.0,1.18652112]
[1772699590376,2.3046678,2108.2,2107.0,1.18652112]
[1772699590547,1.11882206,2108.0,2106.9,1.07659062]
[1772699590741,3.0990616,2107.9,2106.8,1.248]
[1772699590944,1.18607078,2107.8,2106.7,1.248]
[1772699591280,1.18607078,2107.8,2106.8,1.07659062]
[1772699591776,1.11882206,2108.4,2106.9,1.248]
[1772699591945,1.11882206,2108.4,2107.0,1.248]
[1772699592143,1.11882206,2108.4,2107.1,1.07659062]
[1772699592585,1.11882206,2108.4,2107.2,1.248]
[1772699592883,1.11882206,2108.4,2107.3,1.249]
[1772699593087,2.30461155,2108.3,2107.3,2.4352971]
[1772699593402,1.18577504,2108.4,2107.4,1.07659062]
[1772699594613,0.80783892,2108.6,2107.4,1.07659062]
[1772699594902,1.11882206,2109.6,2108.5,0.63060166]
[1772699595078,1.11882206,2109.4,2108.1,2.43190199]
[1772699595255,1.11882206,2109.4,2108.1,2.32059062]
[1772699595679,1.11882206,2109.4,2108.1,1.07659062]
[1772699595877,1.11882206,2109.1,2107.8,2.26265927]
[1772699596182,1.11882206,2109.1,2107.8,3.50665927]
[1772699596761,1.18511495,2109.5,2107.8,1.07659062]
[1772699596762,1.11882206,2108.9,2107.8,1.07659062]
[1772699596968,1.18550834,2108.8,2107.6,3.50776688]
[1772699597389,0.001,2108.2,2107.6,3.50776688]
[1772699597577,0.001,2108.2,2107.6,1.18617626]
[1772699597991,0.001,2108.2,2107.5,3.50882232]
[1772699598297,0.001,2108.2,2107.6,1.07659062]
[1772699598792,0.001,2108.2,2107.6,2.32359062]
[1772699599167,0.001,2108.2,2107.7,1.18612705]
[1772699599370,0.001,2108.2,2107.7,3.53323158]
[1772699599677,0.001,2108.2,2107.8,1.247]
[1772699600431,1.18550834,2108.8,2107.9,1.10010453]
[1772699600582,1.18533971,2109.1,2107.9,1.10010453]
[1772699601086,1.18511495,2109.5,2108.1,1.10010453]
[1772699601287,1.14233427,2109.7,2108.1,1.10010453]
[1772699601689,5.88212315,2109.8,2108.1,1.10010453]
[1772699601892,5.88212315,2109.8,2108.3,1.10010453]
[1772699602110,5.88212315,2109.8,2108.5,1.10010453]
[1772699602314,1.14233427,2109.7,2108.5,1.10010453]
[1772699602505,1.14233427,2109.7,2108.6,1.249]
[1772699602816,1.14233427,2109.7,2108.5,2.34910453]
[1772699603183,2.32739304,2109.6,2108.6,1.18562079]
[1772699605179,2.32722454,2109.9,2108.6,2.28572532]
[1772699605600,2.32722454,2109.9,2108.7,1.25]
[1772699605888,1.14233427,2109.8,2108.5,2.43563387]
[1772699606096,1.14233427,2109.6,2108.4,1.25]
[1772699606292,1.14233427,2109.6,2108.2,1.10010453]
[1772699606495,1.14233427,2109.6,2108.2,2.28591939]
[1772699606788,1.14233427,2109.8,2108.3,1.10010453]
[1772699607111,1.14233427,2109.8,2108.4,1.25]
[1772699607284,1.1850026,2109.7,2108.6,1.18562079]
[1772699607485,2.29734611,2109.7,2108.6,1.18562079]
[1772699607791,2.29734611,2109.7,2108.6,2.31422729]
[1772699607988,1.11234351,2109.6,2108.3,1.18578949]
[1772699608205,1.11234351,2109.6,2108.4,1.249]
[1772699608999,1.11234351,2109.6,2108.3,2.31439599]
[1772699609201,1.11234351,2109.4,2108.3,2.31439599]
[1772699609403,1.11234351,2109.4,2108.2,1.18580635]
[1772699609606,1.11234351,2109.4,2108.1,5.99250238]
[1772699609607,1.11234351,2109.4,2108.1,1.249]
[1772699609908,1.18511495,2109.5,2108.0,2.31452206]
[1772699609909,1.11234351,2109.2,2108.0,1.18591556]
[1772699610119,1.11234351,2109.2,2108.0,0.0011]
[1772699611138,1.11234351,2108.9,2108.0,0.0011]
[1772699611314,1.18550834,2108.8,2108.0,0.0011]
[1772699611705,1.11234351,2108.7,2107.1,1.1286065]
[1772699611919,1.11234351,2108.7,2107.3,1.1286065]
[1772699612382,1.11234351,2108.5,2107.3,2.3776065]
[1772699612718,1.11234351,2108.5,2107.4,1.249]
[1772699612923,1.11234351,2108.5,2107.3,1.1286065]
[1772699613213,1.11234351,2108.5,2107.3,2.3776065]
[1772699613518,2.29807676,2108.4,2107.3,1.1286065]
[1772699613686,1.11234351,2108.3,2107.3,1.1286065]
[1772699614027,1.11234351,2108.3,2107.3,2.31494928]
[1772699614525,1.11234351,2108.3,2107.3,1.1286065]
[1772699614720,1.11234351,2108.3,2107.1,1.18644715]
[1772699614928,1.11234351,2108.3,2107.0,3.97541707]
[1772699615092,1.11234351,2108.3,2107.1,1.1286065]
[1772699615297,1.18584574,2108.2,2107.2,1.1864085]
[1772699615621,1.18584574,2108.2,2107.1,2.31504014]
[1772699615995,2.29818925,2108.2,2107.1,1.1286065]
[1772699616201,1.11234351,2108.1,2107.0,0.4113197]
[1772699616430,1.11234351,2107.9,2107.0,0.4113197]
[1772699616731,1.11234351,2107.7,2106.4,3.56446542]
[1772699616906,1.11234351,2107.5,2106.4,2.31545935]
[1772699617222,1.11234351,2107.5,2106.4,1.1286065]
[1772699617524,1.1862959,2107.4,2106.4,1.1286065]
[1772699617686,1.1862959,2107.4,2106.2,3.91761876]
[1772699617687,2.29863941,2107.4,2106.2,3.91761876]
[1772699617895,1.11234351,2107.3,2106.2,1.249]
[1772699618088,1.11234351,2107.3,2106.1,1.18812359]
[1772699618346,1.11234351,2107.2,2106.1,0.0011]
[1772699619603,1.11234351,2107.0,2106.1,0.0011]
[1772699620013,1.11234351,2106.9,2106.1,0.0011]
[1772699621392,1.11234351,2106.9,2105.5,0.0011]
[1772699621595,2.29908992,2106.6,2105.5,1.1297065]
[1772699623113,1.18674641,2106.6,2105.5,1.1297065]
[1772699623640,4.74698566,2106.7,2105.7,0.0011]
[1772699624005,5.85932917,2106.7,2105.7,0.0011]
[1772699624722,4.74698566,2106.8,2105.7,1.1297065]
[1772699625535,1.18663375,2106.9,2105.9,1.1286065]
[1772699625947,1.1864085,2107.2,2105.9,1.1286065]
[1772699626406,1.18623962,2107.5,2105.9,1.1286065]
[1772699627346,1.18623962,2107.5,2106.1,1.1286065]
[1772699627512,1.11234351,2107.4,2106.1,1.1286065]
[1772699627713,1.1863522,2107.3,2106.2,1.18697179]
[1772699628114,1.1863522,2107.3,2106.2,2.31557829]
[1772699629243,1.1863522,2107.3,2106.3,1.16531461]
[1772699630143,1.1863522,2107.3,2106.4,1.18685909]
[1772699630318,1.1863522,2107.3,2106.4,2.3521737]
[1772699632445,2.31845541,2107.3,2106.3,1.18687214]
[1772699632652,2.31845541,2107.3,2106.3,2.35218675]
[1772699632834,1.1863522,2107.3,2106.4,1.16531461]
[1772699634317,4.74540881,2107.4,2106.4,2.41031461]
[1772699634523,5.87751202,2107.4,2106.4,1.16531461]
[1772699635127,5.87751202,2107.4,2106.1,4.8490202]
[1772699635128,1.13210321,2107.3,2106.1,4.8490202]
[1772699635328,1.13210321,2107.2,2106.0,1.18705226]
[1772699635722,1.13210321,2107.2,2105.8,2.40931461]
[1772699635723,2.02763707,2107.0,2105.8,3.59649761]
[1772699635921,1.13210321,2107.2,2105.9,1.16531461]
[1772699636224,1.1864648,2107.1,2106.1,1.16531461]
[1772699636629,2.31856801,2107.1,2106.1,1.16531461]
[1772699637024,1.1864648,2107.1,2106.1,1.16531461]
[1772699637239,1.13210321,2107.0,2106.3,0.0011]
[1772699637855,1.1874648,2107.1,2106.3,1.16641461]
[1772699638232,0.001,2107.1,2106.4,1.18685909]
[1772699638826,0.001,2107.1,2106.3,2.35329123]
[1772699639023,0.001,2107.1,2106.3,1.16641461]
[1772699639225,1.13310321,2107.1,2106.0,2.35239465]
[1772699640458,1.18652112,2107.0,2106.0,2.35239465]
[1772699641033,1.18652112,2107.0,2106.1,1.242]
[1772699641742,1.18652112,2107.0,2106.0,2.35239465]
[1772699641948,1.18652112,2107.0,2106.1,1.242]
[1772699642261,1.18652112,2107.0,2106.2,1.16531461]
[1772699642469,0.001,2107.1,2106.3,1.18691544]
[1772699642636,0.001,2107.1,2106.3,2.35223005]
[1772699643367,1.13310321,2107.1,2106.1,2.32797728]
[1772699643541,1.13310321,2107.1,2106.1,1.18700226]
[1772699643739,1.13310321,2107.1,2106.2,1.242]
[1772699644355,1.13210321,2106.9,2105.8,1.18717123]
[1772699644563,1.13210321,2106.9,2105.7,5.91540811]
[1772699644564,1.13210321,2106.7,2105.7,0.0011]
[1772699644861,1.13210321,2106.5,2105.7,0.0011]
[1772699645672,1.13210321,2106.5,2105.4,2.09589265]
[1772699646033,1.13210321,2106.3,2105.4,2.09589265]
[1772699646245,1.13210321,2106.3,2105.2,1.18859452]
[1772699646431,1.18708452,2106.0,2105.2,0.0011]
[1772699646747,1.13210321,2105.8,2105.2,0.0011]
[1772699647163,1.13210321,2105.8,2104.5,4.75127096]
[1772699647164,1.13210321,2105.8,2104.5,1.24]
[1772699647471,1.13210321,2105.6,2104.5,1.24]
[1772699648274,1.13210321,2105.6,2104.4,1.18798707]
[1772699648574,1.13210321,2105.6,2104.5,2.42789016]
[1772699648575,1.18736642,2105.5,2104.5,2.42789016]
[1772699648742,1.13210321,2105.4,2104.4,1.1879606]
[1772699649138,1.13210321,2105.4,2104.3,7.48226987]
[1772699649139,1.13210321,2105.4,2104.3,2.67818289]
[1772699649337,1.13210321,2105.4,2104.3,1.18800882]
[1772699649830,1.13210321,2105.4,2104.3,2.42700882]
[1772699650435,1.13210321,2105.2,2104.2,2.42709999]
[1772699650834,1.13210321,2105.2,2104.6,0.0011]
[1772699652937,1.18759203,2105.1,2104.6,0.0011]
[1772699653255,1.18759203,2105.1,2104.4,0.0011]
[1772699653256,1.13210321,2105.0,2104.4,0.0011]
[1772699653572,1.13210321,2104.9,2104.4,0.0011]
[1772699654357,1.13210321,2104.9,2104.1,0.0011]
[1772699655143,1.13210321,2104.7,2104.1,0.0011]
[1772699657051,2.31997739,2104.6,2104.1,0.0011]
[1772699657972,1.13210321,2104.5,2104.1,0.0011]
[1772699658973,1.18787418,2104.6,2104.1,0.0011]
[1772699659177,1.187803,2104.8,2104.1,0.0011]
[1772699659545,2.370014,2104.9,2104.1,0.0011]
[1772699659942,1.18226505,2104.9,2104.1,0.0011]
[1772699660145,1.1876167,2105.1,2104.1,0.60446505]
[1772699660349,2.36983661,2105.2,2104.2,0.60413723]
[1772699661179,1.18226505,2105.2,2104.3,1.79218075]
[1772699661370,1.18226505,2105.5,2104.4,0.60413723]
[1772699662365,1.18226505,2105.5,2104.3,1.18804352]
[1772699662543,1.18226505,2105.4,2104.3,1.18804352]
[1772699663358,1.18226505,2105.4,2104.1,7.01500401]
[1772699663359,1.18226505,2105.2,2104.1,7.01500401]
[1772699663572,1.18226505,2105.1,2104.1,1.18921178]
[1772699663877,1.18226505,2105.1,2104.3,0.0011]
[1772699664062,1.18326505,2104.7,2104.3,0.0011]
[1772699664377,1.18326505,2104.7,2104.1,0.0011]
[1772699664981,1.18226505,2104.5,2104.1,0.0011]
[1772699665181,1.18226505,2104.5,2103.8,0.0011]
[1772699665354,1.18226505,2104.3,2103.8,0.0011]
[1772699668289,1.23224309,2104.1,2103.8,0.0011]
[1772699668658,4.75239996,2104.3,2103.8,0.0011]
[1772699668659,1.18808819,2104.3,2103.8,0.0011]
[1772699674691,1.703,2104.6,2103.8,0.0011]
[1772699674692,1.1879077,2104.6,2103.8,0.63068806]
[1772699674860,0.001,2104.7,2103.8,0.63068806]
[1772699675071,0.001,2104.7,2104.1,1.18815645]
[1772699675278,0.001,2104.7,2104.1,1.81680812]
[1772699675570,1.18759203,2105.1,2104.2,0.62765167]
[1772699675779,1.18759203,2105.1,2104.1,1.6587667]
[1772699676088,1.18759203,2105.1,2104.1,2.84692315]
[1772699676676,1.18745054,2105.4,2104.1,2.84692315]
[1772699676992,1.18745054,2105.4,2104.1,2.84802315]
[1772699677166,0.001,2104.5,2104.1,2.84802315]
[1772699677365,1.24062975,2105.3,2104.2,1.224]
[1772699677588,1.24062975,2105.3,2104.3,0.02976452]
[1772699678291,1.18741023,2105.5,2104.3,0.02976452]
[1772699678707,2.42803998,2105.5,2104.3,0.02976452]
[1772699678879,1.24062975,2105.4,2104.3,1.25276452]
[1772699679392,2.42810896,2105.3,2104.4,1.18798707]
[1772699681498,1.24062975,2105.2,2104.4,1.18798707]
[1772699681672,1.24062975,2105.2,2104.2,4.75232362]
[1772699682385,1.24062975,2105.2,2104.2,4.779143]
[1772699682795,1.24062975,2105.2,2104.2,6.000143]
[1772699683180,1.24062975,2105.2,2104.2,4.779143]
[1772699683682,2.42822178,2105.1,2104.2,4.779143]
[1772699684193,1.24062975,2105.0,2104.2,4.779143]
[1772699684592,1.24062975,2105.0,2104.2,1.18809999]
[1772699684986,1.24062975,2105.4,2104.3,0.02404241]
[1772699685793,1.24062975,2105.2,2104.4,1.18798707]
[1772699687883,2.42822178,2105.1,2104.4,1.18798707]